bitfinex/quotes_ETHUSD_20240821
["timestamp","ask_amount","ask_price","bid_price","bid_amount"]
[1724212856427,0.04308564,2598.8,2598.7,3.49044092]
[1724212872335,0.04308564,2598.8,2598.7,1.04874092]
[1724212876329,0.04308564,2598.8,2598.2,7.30749346]
[1724212876330,0.04308564,2598.8,2598.2,9.66689346]
[1724212876485,1.671,2598.5,2597.8,2.3594]
[1724212876687,2.4402,2598.4,2597.8,2.3594]
[1724212876925,2.48446373,2598.4,2597.8,2.3594]
[1724212877130,2.48446373,2598.4,2597.8,2.76244]
[1724212877551,2.48446373,2598.4,2597.8,0.40304]
[1724212878816,2.48446373,2598.4,2597.9,0.55]
[1724212881471,2.48446373,2598.4,2598.0,4.0304]
[1724212881472,0.04426373,2598.4,2598.0,4.0304]
[1724212881775,2.4402,2598.6,2598.1,1.00804]
[1724212882071,0.04398185,2598.3,2598.1,0.55]
[1724212882309,2.4402,2598.6,2598.1,0.55]
[1724212882724,0.04398185,2598.5,2598.1,0.55]
[1724212886365,0.04398185,2598.5,2597.9,0.55]
[1724212890796,2.449,2598.4,2597.9,0.55]
[1724212891220,0.04398185,2598.3,2597.9,1.50284935]
[1724212891415,2.3885,2598.2,2597.9,1.50284935]
[1724212893068,2.3885,2598.2,2597.9,3.17384935]
[1724212893469,2.3191,2598.5,2598.1,1.671]
[1724212893670,2.3191,2598.8,2598.2,0.55]
[1724212893924,0.04253039,2598.4,2598.3,1.671]
[1724212894221,0.04261097,2598.4,2598.3,2.221]
[1724212894416,2.3191,2598.8,2598.3,2.221]
[1724212894618,2.3191,2598.8,2598.4,0.55]
[1724212894870,0.04262104,2598.7,2598.5,1.671]
[1724212894990,0.15,2598.9,2598.6,1.01304]
[1724212895380,0.04281241,2598.8,2598.6,1.01304]
[1724212902840,0.04281241,2598.8,2598.6,0.55]
[1724212903516,0.04281241,2598.8,2598.4,0.55]
[1724212903923,0.15,2598.9,2598.4,0.55]
[1724212904331,0.04212807,2598.8,2598.5,2.3293]
[1724212904560,0.04212807,2598.8,2598.6,0.55]
[1724212904736,0.15,2598.9,2598.6,0.89293]
[1724212904936,0.04116392,2598.7,2598.6,0.89293]
[1724212905142,0.15,2598.9,2598.6,0.89293]
[1724212905563,0.04116392,2598.8,2598.6,0.89293]
[1724212905964,0.04116392,2598.8,2598.7,4.0716]
[1724212906263,0.15,2598.9,2598.7,5.118053]
[1724212906556,0.15,2598.9,2598.7,4.568053]
[1724212906767,0.15,2598.9,2598.8,0.55]
[1724212907121,0.19124454,2598.9,2598.8,0.55]
[1724212907546,0.15,2598.9,2598.8,0.55]
[1724212907757,0.15,2598.9,2598.8,1.0618053]
[1724212907918,0.15,2598.9,2598.8,0.55]
[1724212908118,0.19124454,2598.9,2598.8,0.55]
[1724212909894,0.19124454,2598.9,2598.8,2.9963]
[1724212910064,0.15,2598.9,2598.8,3.07324124]
[1724212910252,0.15,2598.9,2598.8,3.54766536]
[1724212910450,0.19169797,2598.9,2598.8,3.54766536]
[1724212910769,0.19169797,2598.9,2598.8,6.54766536]
[1724212910975,0.15,2598.9,2598.8,6.54766536]
[1724212912136,0.15,2598.9,2598.8,4.02442412]
[1724212912461,0.15,2598.9,2598.8,0.47442412]
[1724212912462,0.19170805,2598.9,2598.8,0.47442412]
[1724212913023,0.19170805,2598.9,2598.7,1.671]
[1724212913433,0.15,2598.9,2598.7,1.671]
[1724212913673,0.15,2598.9,2598.8,0.55]
[1724212921016,0.19253426,2598.9,2598.8,0.55]
[1724212927846,0.19253426,2598.9,2598.8,2.9374]
[1724212928133,0.19253426,2598.9,2598.8,6.40593409]
[1724212928637,0.15,2598.9,2598.8,6.40593409]
[1724212929704,0.15,2598.9,2598.8,6.48286964]
[1724212929897,0.15,2598.9,2598.8,6.40593409]
[1724212930137,0.15,2598.9,2598.8,6.48286008]
[1724212930337,0.15,2598.9,2598.8,8.13116311]
[1724212930494,0.00999166,2598.9,2598.8,8.13116311]
[1724212932094,0.00999166,2598.9,2598.8,8.46313409]
[1724212932294,0.00999166,2598.9,2598.8,9.80219903]
[1724212933294,0.00999166,2598.9,2598.8,8.46313409]
[1724212933544,0.00999166,2598.9,2598.8,9.80209977]
[1724212937458,0.00999166,2598.9,2598.8,10.6097963]
[1724212938250,0.00999166,2598.9,2598.8,10.60977653]
[1724212940319,0.00999166,2598.9,2598.8,9.80208]
[1724212941560,0.00999166,2598.9,2598.8,10.60977653]
[1724212942650,0.00999166,2598.9,2598.8,9.80208]
[1724212943159,0.00999166,2598.9,2598.8,10.60978087]
[1724212945681,0.00066569,2598.9,2598.8,10.60978087]
[1724212947962,0.00066569,2598.9,2598.8,10.6098025]
[1724212951473,0.00066569,2598.9,2598.8,9.80210597]
[1724212951716,0.00066569,2598.9,2598.8,10.60855177]
[1724212952965,0.00066569,2598.9,2598.8,10.60855358]
[1724212953411,0.00066569,2598.9,2598.8,13.0221131]
[1724212953575,0.00066569,2598.9,2598.8,11.01365257]
[1724212953785,0.00066569,2598.9,2598.8,13.0221131]
[1724212954599,0.00066569,2598.9,2598.8,13.44620685]
[1724212956184,0.00066569,2598.9,2598.8,11.81056831]
[1724212956896,0.00066569,2598.9,2598.8,7.75216831]
[1724212957111,0.00066569,2598.9,2598.5,0.8066399]
[1724212957269,0.00066569,2598.9,2598.8,1.671]
[1724212959400,0.00066569,2598.9,2598.8,2.221]
[1724212961723,0.00066569,2598.9,2598.8,3.56011218]
[1724212961925,0.00066569,2598.9,2598.8,6.56011218]
[1724212962127,0.00066569,2598.9,2598.8,7.79767913]
[1724212962723,0.00066569,2598.9,2598.8,7.79768165]
[1724212965430,2.30336569,2598.9,2598.8,6.45856695]
[1724212965837,2.30336569,2598.9,2598.8,5.221]
[1724212966047,0.00066569,2598.9,2598.8,5.221]
[1724212966261,0.00066569,2598.9,2598.8,6.56015966]
[1724212967633,0.00066569,2598.9,2598.8,5.221]
[1724212967966,0.00066569,2598.9,2598.8,2.221]
[1724212968173,0.00066569,2598.9,2598.8,5.94398383]
[1724212970356,0.00066569,2598.9,2598.8,7.28321791]
[1724212970688,0.00066569,2598.9,2598.8,7.28321855]
[1724212970888,0.00066569,2598.9,2598.8,5.94398383]
[1724212971233,0.00066569,2598.9,2598.8,7.28322052]
[1724212972333,0.00066569,2598.9,2598.8,9.2920726]
[1724212972735,0.00066569,2598.9,2598.8,9.29197285]
[1724212977376,0.00066569,2598.9,2598.8,7.28317944]
[1724212977741,0.00066569,2598.9,2598.8,9.29205183]
[1724212978250,0.00066569,2598.9,2598.8,9.29205083]
[1724212978537,0.00066569,2598.9,2598.8,7.28321103]
[1724212980589,0.00066569,2598.9,2598.8,9.29204336]
[1724212980998,0.00066569,2598.9,2598.8,7.28321103]
[1724212981203,0.00066569,2598.9,2598.8,7.28322]
[1724212982125,0.00066569,2598.9,2598.8,9.29207426]
[1724212984209,0.00066569,2598.9,2598.8,7.28322]
[1724212984405,0.00066569,2598.9,2598.8,9.29207426]
[1724212984654,0.00066569,2598.9,2598.8,7.28322]
[1724212984824,0.00066569,2598.9,2598.8,9.29207426]
[1724212985025,0.00066569,2598.9,2598.8,7.28322]
[1724212985612,0.00066569,2598.9,2598.8,5.94398383]
[1724212986130,0.00066569,2598.9,2598.8,7.2832153]
[1724212986652,0.00066569,2598.9,2598.8,5.94398383]
[1724212986807,2.47036569,2598.9,2598.8,5.94398383]
[1724212988114,2.47036569,2598.9,2598.8,7.28323438]
[1724212988319,2.47036569,2598.9,2598.8,5.94398383]
[1724212988515,2.47036569,2598.9,2598.8,7.2832326]
[1724212988946,2.47036569,2598.9,2598.8,5.94398383]
[1724212989713,2.47036569,2598.9,2598.8,7.28323758]
[1724212989914,2.47036569,2598.9,2598.8,5.94398383]
[1724212990572,2.47036569,2598.9,2598.8,9.29210554]
[1724212990573,0.00066569,2598.9,2598.8,9.29210554]
[1724212991261,0.00066569,2598.9,2598.8,9.29192799]
[1724212993367,0.00066569,2598.9,2598.8,10.09856789]
[1724212994567,2.28086569,2598.9,2598.8,9.29192799]
[1724212995246,2.28086569,2598.9,2598.8,0.72298383]
[1724212995446,2.28086569,2598.9,2598.5,1.671]
[1724212995656,2.28086569,2598.9,2598.3,7.30749346]
[1724212995831,2.28086569,2598.9,2598.5,1.671]
[1724212997834,2.2632,2598.7,2598.6,0.55]
[1724212998427,2.30416843,2598.7,2598.6,0.55]
[1724213001621,2.30416843,2598.7,2598.4,0.55]
[1724213005686,2.30416843,2598.7,2598.0,7.30749346]
[1724213005687,4.20565184,2598.7,2598.0,7.30749346]
[1724213005822,2.2609,2598.6,2598.0,7.30749346]
[1724213007963,2.2609,2598.6,2598.1,0.55]
[1724213008163,0.0402124,2598.5,2598.1,0.55]
[1724213008372,2.4694,2598.4,2598.1,0.55]
[1724213008572,2.5096124,2598.4,2598.1,0.55]
[1724213009582,2.5096124,2598.4,2598.0,0.55]
[1724213009790,2.4694,2598.4,2598.0,0.55]
[1724213011512,2.313,2598.2,2598.0,0.55]
[1724213011891,2.313,2598.2,2597.3,19.57749346]
[1724213012223,2.313,2598.0,2597.3,7.30749346]
[1724213012517,0.03980904,2597.9,2597.4,1.671]
[1724213012719,2.313,2598.0,2597.5,0.89784935]
[1724213013028,2.313,2598.0,2597.4,1.671]
[1724213014123,2.313,2598.0,2597.5,0.55]
[1724213016004,2.31170185,2598.0,2597.5,0.55]
[1724213017907,1.671,2597.9,2597.4,0.55]
[1724213018105,1.671,2598.1,2597.4,0.55]
[1724213018425,1.671,2598.1,2597.4,1.50284935]
[1724213019177,2.4461,2598.0,2597.4,1.50284935]
[1724213019623,2.4461,2598.0,2597.4,0.55]
[1724213019826,2.3089,2597.8,2597.4,0.55]
[1724213019985,1.671,2597.7,2597.2,0.55]
[1724213020194,2.3089,2597.6,2597.2,0.55]
[1724213021228,2.3261,2597.4,2597.2,0.55]
[1724213023682,2.3069307,2597.3,2597.2,0.55]
[1724213024130,2.2681,2597.3,2597.2,0.55]
[1724213024635,2.2681,2597.2,2596.5,19.57749346]
[1724213024838,2.34513148,2597.2,2596.5,2.12484935]
[1724213025127,2.2681,2597.2,2596.5,1.671]
[1724213025336,2.3069307,2597.1,2596.5,1.671]
[1724213025636,2.2681,2597.1,2596.5,1.671]
[1724213025790,2.2681,2597.1,2596.6,0.55]
[1724213029120,2.2681,2597.1,2596.6,2.221]
[1724213034755,2.2681,2597.1,2596.6,2.4431]
[1724213037575,2.2681,2597.1,2596.6,0.7721]
[1724213037865,2.2681,2597.1,2596.6,0.55]
[1724213038098,2.2681,2597.1,2596.5,0.55]
[1724213040708,2.4153,2597.0,2596.1,7.30749346]
[1724213040857,2.4153,2597.0,2596.3,1.671]
[1724213041252,2.4359,2596.8,2596.3,1.671]
[1724213041564,2.4359,2596.8,2596.3,2.56884935]
[1724213041868,2.4359,2596.8,2596.4,0.55]
[1724213045259,2.4359,2596.8,2596.5,1.671]
[1724213045511,2.4359,2596.8,2596.6,0.55]
[1724213055469,2.4359,2596.8,2596.4,0.55]
[1724213055672,2.4359,2596.8,2596.5,0.31188493]
[1724213055839,2.4359,2596.8,2596.6,0.55]
[1724213058067,2.2749,2597.2,2596.6,0.55]
[1724213058574,2.2749,2597.0,2596.6,0.55]
[1724213059161,0.0358835,2596.9,2596.6,0.55]
[1724213059365,2.2749,2596.8,2596.6,0.55]
[1724213062723,2.2749,2596.8,2596.7,0.25328849]
[1724213062921,2.2749,2596.8,2596.7,0.55]
[1724213063073,2.3107835,2596.8,2596.7,0.55]
[1724213063274,2.3107835,2596.8,2596.6,0.55]
[1724213063780,2.2749,2596.8,2596.6,0.55]
[1724213065176,2.2563,2597.2,2596.6,0.55]
[1724213065419,0.0358835,2596.7,2596.6,0.55]
[1724213065636,2.2563,2597.2,2596.6,2.69951849]
[1724213065916,0.0358835,2596.7,2596.6,2.69951849]
[1724213066115,2.2563,2597.2,2596.6,2.69951849]
[1724213066622,0.0358835,2597.1,2596.6,2.69951849]
[1724213066776,2.2563,2597.2,2596.7,0.30114034]
[1724213067113,0.0358835,2597.1,2596.7,0.30114034]
[1724213067317,0.0358835,2597.1,2596.8,0.55]
[1724213068637,2.4795,2597.0,2596.8,0.55]
[1724213068809,0.03605517,2596.9,2596.8,0.55]
[1724213069462,2.4795,2596.9,2596.8,0.55]
[1724213069669,2.51555517,2596.9,2596.8,0.55]
[1724213073205,2.76711069,2596.9,2596.8,0.55]
[1724213075772,0.03605517,2596.9,2596.8,0.55]
[1724213075917,0.03605517,2596.9,2596.7,0.55]
[1724213076253,2.47,2597.2,2596.7,0.55]
[1724213076455,2.47,2597.2,2596.7,0.62701203]
[1724213076456,0.03609556,2597.1,2596.7,0.62701203]
[1724213076613,0.03609556,2597.1,2596.8,0.2298012]
[1724213076814,0.03609556,2597.1,2596.9,0.55]
[1724213081063,2.3754,2597.4,2596.9,0.55]
[1724213081269,0.03626723,2597.0,2596.9,0.55]
[1724213081559,2.3754,2598.1,2597.0,2.476]
[1724213081718,2.3754,2598.1,2597.5,1.671]
[1724213081920,2.3754,2598.1,2597.6,0.55]
[1724213087875,2.3754,2598.1,2597.4,0.55]
[1724213090069,0.03764013,2598.0,2597.4,0.55]
[1724213090279,0.03764013,2598.0,2597.5,0.2221]
[1724213090484,0.03764013,2598.0,2597.6,0.55]
[1724213097405,0.03764013,2598.0,2597.4,0.55]
[1724213098179,2.3269,2597.9,2597.4,0.55]
[1724213098588,0.03764013,2597.8,2597.4,0.55]
[1724213098850,0.03764013,2597.8,2597.4,0.7721]
[1724213101640,0.03764013,2597.8,2597.0,2.467]
[1724213101641,2.4487,2597.7,2597.0,2.467]
[1724213101788,2.4487,2597.7,2597.2,1.671]
[1724213101990,2.4487,2597.7,2597.0,1.671]
[1724213102225,2.4487,2597.7,2597.0,2.83783947]
[1724213103433,2.4487,2597.7,2597.2,1.671]
[1724213103838,2.4487,2597.7,2597.3,0.55]
[1724213112652,2.4487,2597.7,2597.2,0.55]
[1724213114424,2.3154,2598.3,2597.5,1.671]
[1724213114627,2.3154,2598.3,2597.7,1.671]
[1724213114803,2.3154,2598.1,2597.4,7.30749346]
[1724213114974,2.3154,2598.1,2597.8,0.55]
[1724213115373,2.3154,2597.9,2597.8,0.55]
[1724213115889,2.35151968,2597.9,2597.2,1.671]
[1724213116095,7.27,2598.6,2597.3,0.55]
[1724213116096,2.3154,2597.7,2597.3,0.55]
[1724213116265,2.39243148,2597.7,2597.1,0.55]
[1724213117062,2.72174315,2597.7,2597.0,1.16683947]
[1724213117267,2.72174315,2597.7,2596.9,7.30749346]
[1724213117268,2.39243148,2597.6,2596.9,7.30749346]
[1724213118423,2.39243148,2597.6,2597.0,0.55]
[1724213118715,2.3154,2597.5,2597.0,0.55]
[1724213119408,2.35142879,2597.4,2597.0,0.55]
[1724213119571,2.35142879,2597.4,2596.9,0.55]
[1724213119770,2.3154,2597.4,2596.9,0.55]
[1724213121518,0.03602879,2597.3,2596.9,0.55]
[1724213121828,2.3154,2597.2,2596.9,0.55]
[1724213122195,0.03602879,2597.1,2596.7,0.55]
[1724213122388,0.03602879,2597.1,2596.7,1.73428935]
[1724213122684,2.3154,2597.2,2596.7,1.73428935]
[1724213124836,2.3154,2597.2,2596.8,1.671]
[1724213125007,2.3154,2597.2,2596.9,0.55]
[1724213125410,0.03602879,2597.1,2596.9,0.55]
[1724213128493,2.3154,2597.2,2596.9,0.55]
[1724213129534,0.03568539,2597.1,2596.9,0.55]
[1724213133647,2.3154,2597.2,2596.8,2.221]
[1724213133950,0.03568539,2597.0,2596.8,3.29227828]
[1724213134167,2.3154,2597.2,2596.8,3.29227828]
[1724213134301,2.2649,2597.4,2596.8,3.29227828]
[1724213134497,0.03568539,2597.3,2596.8,3.29227828]
[1724213134843,2.2649,2597.4,2596.8,3.29227828]
[1724213135344,0.03568539,2597.3,2596.8,3.29227828]
[1724213135496,2.2649,2597.4,2596.8,5.72237828]
[1724213135696,0.03568539,2597.3,2596.8,5.72237828]
[1724213135929,2.2649,2597.4,2596.8,5.72237828]
[1724213136197,0.03568539,2597.3,2596.8,3.29227828]
[1724213136532,1.671,2597.6,2596.8,2.221]
[1724213136533,2.4659,2597.2,2596.8,2.221]
[1724213137413,2.3925,2597.7,2597.0,1.671]
[1724213137609,2.3925,2597.7,2597.1,0.55]
[1724213137833,0.4417728,2597.6,2597.1,0.55]
[1724213138027,2.326,2597.5,2597.1,0.55]
[1724213138607,0.0354228,2597.4,2597.1,0.55]
[1724213151927,0.0354228,2597.4,2596.9,0.55]
[1724213152816,2.326,2597.5,2596.9,0.55]
[1724213153160,2.326,2597.5,2596.9,1.01331]
[1724213153332,0.0356248,2597.4,2596.9,1.01331]
[1724213156755,0.0356248,2597.4,2596.9,0.55]
[1724213159466,2.3049,2597.2,2596.7,0.55]
[1724213160013,2.3049,2597.2,2596.6,10.61083336]
[1724213161258,2.3049,2597.2,2596.6,12.28183336]
[1724213161967,2.3049,2597.2,2596.7,0.55]
[1724213164935,0.0356248,2597.1,2596.7,0.55]
[1724213165167,2.3049,2597.2,2596.7,0.55]
[1724213165369,0.0356248,2597.1,2596.7,0.55]
[1724213165578,2.4563,2597.4,2596.8,1.671]
[1724213165757,2.4563,2597.4,2596.9,0.55]
[1724213165928,0.0356248,2597.3,2596.9,0.55]
[1724213179416,0.0356248,2597.3,2597.0,0.55]
[1724213179574,0.28481728,2597.3,2596.8,0.55]
[1724213179921,0.28481728,2597.3,2596.7,0.55]
[1724213180075,0.0356248,2597.3,2596.7,0.55]
[1724213194424,2.3595,2597.2,2596.7,0.55]
[1724213194796,0.0354228,2597.1,2596.7,0.55]
[1724213201143,2.3595,2597.2,2596.7,0.55]
[1724213201530,0.03531169,2597.1,2596.7,0.55]
[1724213201726,0.03531169,2597.1,2596.7,1.1452156]
[1724213202138,2.3595,2597.2,2596.7,1.1452156]
[1724213202504,0.03531169,2597.1,2596.7,1.1452156]
[1724213202952,2.3595,2597.2,2596.7,1.1452156]
[1724213203354,0.03531169,2597.1,2596.7,1.1452156]
[1724213203650,2.2547,2597.6,2597.0,1.671]
[1724213203894,2.2547,2597.6,2597.1,0.55]
[1724213204055,0.03530159,2597.5,2597.1,0.55]
[1724213207121,0.03530159,2597.5,2597.0,0.55]
[1724213213935,3.9633,2597.4,2597.0,0.55]
[1724213214183,0.43525266,2597.3,2596.8,0.55]
[1724213214345,2.2923,2597.2,2596.8,0.55]
[1724213214675,2.2923,2597.2,2596.6,2.56063895]
[1724213214870,2.2923,2597.2,2596.7,1.34042636]
[1724213215076,0.0353925,2597.1,2596.8,0.55]
[1724213215297,0.0353925,2597.1,2596.6,0.55]
[1724213215599,2.2923,2597.2,2596.7,1.34042827]
[1724213215900,0.0354329,2597.1,2596.8,0.55]
[1724213216394,2.2923,2597.2,2596.7,0.55]
[1724213216557,0.0354329,2597.1,2596.7,0.55]
[1724213216761,2.2923,2597.2,2596.7,0.55]
[1724213216998,0.0354329,2597.1,2596.7,0.55]
[1724213217187,2.2923,2597.2,2596.7,0.55]
[1724213217563,0.0354329,2597.1,2596.7,0.55]
[1724213217758,2.2923,2597.2,2596.8,0.22117004]
[1724213218100,0.0354329,2597.1,2596.9,0.55]
[1724213218258,0.0354329,2597.1,2596.7,2.221]
[1724213218579,2.2923,2597.2,2596.7,2.221]
[1724213218780,0.0354329,2597.1,2596.7,2.221]
[1724213218995,2.2923,2597.2,2596.7,2.221]
[1724213219306,2.2923,2597.2,2596.7,1.25756962]
[1724213219307,0.0354329,2597.1,2596.7,1.25756962]
[1724213219461,0.0354329,2597.1,2596.7,0.55]
[1724213219662,2.2923,2597.2,2596.7,0.55]
[1724213219857,2.2923,2597.2,2596.6,0.55]
[1724213220061,0.0354329,2597.1,2596.6,0.55]
[1724213220364,2.69633315,2597.2,2596.6,0.55]
[1724213220587,0.0354329,2597.1,2596.6,0.55]
[1724213220783,2.69633315,2597.2,2596.6,0.55]
[1724213220988,0.0354329,2597.1,2596.6,0.55]
[1724213221320,2.69633315,2597.2,2596.6,0.55]
[1724213221659,0.03530159,2597.1,2596.6,0.55]
[1724213221887,0.03530159,2597.1,2596.5,0.55]
[1724213222088,4.1634,2597.0,2596.5,0.55]
[1724213222528,0.03530159,2596.9,2596.5,0.55]
[1724213222886,0.11233307,2596.9,2596.5,0.55]
[1724213223512,0.03530159,2596.9,2596.5,0.55]
[1724213224682,2.4924,2596.8,2596.5,0.55]
[1724213226709,2.4924,2596.8,2596.3,2.56090534]
[1724213226916,0.03505915,2596.7,2596.4,1.84476594]
[1724213227134,2.4924,2596.8,2596.5,0.55]
[1724213227993,2.4129,2597.1,2596.6,1.671]
[1724213228195,0.27634915,2597.0,2596.7,0.55]
[1724213228529,0.03505915,2597.0,2596.7,0.55]
[1724213231725,2.4237,2596.9,2596.7,0.55]
[1724213231878,2.4237,2596.9,2596.5,0.55]
[1724213234733,2.3093,2597.1,2596.5,0.55]
[1724213234879,2.3093,2597.1,2596.5,2.9427]
[1724213235233,0.03505915,2597.0,2596.5,2.9427]
[1724213236296,2.34435915,2597.0,2596.5,3.60515797]
[1724213238204,2.34435915,2597.0,2596.5,0.55]
[1724213249766,2.34435915,2597.0,2596.4,2.221]
[1724213249945,4.09239063,2597.0,2596.4,0.55]
[1724213250146,0.40923906,2596.9,2596.4,0.55]
[1724213250329,0.07703148,2596.8,2596.4,0.55]
[1724213250666,2.34938637,2596.7,2596.2,0.55]
[1724213250968,1.671,2596.6,2596.0,7.30749346]
[1724213251258,0.03478637,2596.5,2596.0,1.671]
[1724213251457,2.3146,2596.7,2596.0,1.671]
[1724213251657,0.03478637,2596.4,2596.0,1.671]
[1724213251820,2.3146,2596.7,2596.0,1.671]
[1724213252019,0.03478637,2596.6,2596.1,0.55]
[1724213252902,0.03478637,2596.6,2596.2,1.671]
[1724213253119,0.03478637,2596.6,2596.3,3.0417]
[1724213253606,2.3908,2596.9,2596.3,3.0417]
[1724213253993,0.03478637,2596.8,2596.3,3.0417]
[1724213255657,0.03478637,2596.8,2596.4,1.671]
[1724213255859,0.03478637,2596.8,2596.5,0.55]
[1724213256257,2.4974,2597.1,2596.5,0.55]
[1724213256458,0.03478637,2596.7,2596.5,0.55]
[1724213256684,0.24974,2597.0,2596.5,0.55]
[1724213256886,0.03478637,2596.6,2596.5,0.55]
[1724213257215,0.24974,2597.0,2596.5,0.55]
[1724213257556,0.03478637,2596.9,2596.5,0.55]
[1724213257878,0.03478637,2596.9,2596.6,2.3523]
[1724213258057,0.03478637,2596.9,2596.7,0.55]
[1724213258253,2.317,2597.2,2596.7,0.55]
[1724213258512,0.03478637,2596.8,2596.7,0.55]
[1724213258659,2.317,2597.2,2596.7,0.55]
[1724213258855,0.03478637,2596.8,2596.7,0.55]
[1724213259213,2.317,2597.2,2596.7,0.55]
[1724213259358,6.988,2597.2,2596.7,0.55]
[1724213259556,0.03478637,2597.1,2596.5,0.55]
[1724213260019,0.03478637,2597.1,2596.5,1.01175]
[1724213261879,2.3479,2597.8,2597.0,1.671]
[1724213262076,2.3479,2597.8,2597.1,0.55]
[1724213262277,1.671,2597.7,2597.1,0.55]
[1724213262677,2.3479,2597.6,2597.1,0.55]
[1724213264168,2.3479,2597.6,2596.9,0.55]
[1724213264339,2.74979,2597.6,2596.9,0.55]
[1724213265215,2.2876,2597.4,2596.6,4.0764]
[1724213266940,2.2876,2597.4,2596.7,0.55]
[1724213267103,2.4752,2597.2,2596.7,0.55]
[1724213268340,2.88982,2597.2,2596.7,0.55]
[1724213268504,2.88982,2597.2,2596.5,0.55]
[1724213268707,2.4752,2597.2,2596.5,0.55]
[1724213272441,2.4752,2597.2,2596.6,4.0955]
[1724213272637,2.4752,2597.2,2596.7,0.55]
[1724213273638,2.4109,2597.4,2596.7,0.55]
[1724213280262,1.671,2597.6,2596.9,2.2804]
[1724213280567,4.671,2597.6,2597.0,0.55]
[1724213284410,2.2727,2597.5,2597.0,0.55]
[1724213285176,1.671,2597.4,2597.0,0.55]
[1724213287373,0.03410606,2597.3,2597.0,0.55]
[1724213289618,2.2727,2597.5,2597.0,0.55]
[1724213289820,0.03410606,2597.2,2597.0,0.55]
[1724213290017,2.2727,2597.5,2597.0,0.55]
[1724213290224,0.03410606,2597.1,2597.0,0.55]
[1724213290404,2.2727,2597.5,2597.0,0.55]
[1724213290630,0.03410606,2597.1,2597.0,0.55]
[1724213290834,2.2727,2597.5,2597.0,0.55]
[1724213291151,2.96707,2597.5,2597.0,0.55]
[1724213291350,0.03410606,2597.4,2597.0,0.55]
[1724213301025,1.70510606,2597.4,2597.0,0.55]
[1724213301552,0.03410606,2597.4,2597.0,0.55]
[1724213334422,0.03410606,2597.4,2597.1,0.55]
[1724213334620,3.0,2597.6,2597.1,0.55]
[1724213334916,0.86738367,2597.5,2597.0,0.55]
[1724213335418,0.03420713,2597.5,2597.0,0.55]
[1724213341580,1.671,2597.4,2597.0,0.55]
[1724213341893,0.03426776,2597.3,2597.0,0.55]
[1724213343227,0.03426776,2597.2,2597.0,0.55]
[1724213343383,7.1353,2597.6,2597.0,0.55]
[1724213343588,1.03123239,2597.5,2597.0,0.55]
[1724213345787,1.671,2597.4,2597.0,0.55]
[1724213345986,1.671,2597.2,2596.7,2.4091]
[1724213346211,0.03426776,2597.1,2596.7,2.4091]
[1724213346597,0.44240454,2597.1,2596.7,2.4091]
[1724213346997,2.80410454,2597.1,2596.4,2.3767]
[1724213347327,2.80410454,2597.1,2596.2,2.4808958]
[1724213347328,1.671,2596.6,2596.0,2.3767]
[1724213347728,0.03438902,2596.5,2596.0,2.3767]
[1724213348233,0.03438902,2596.4,2596.0,2.3767]
[1724213348417,1.671,2596.6,2596.0,2.3767]
[1724213348595,0.03438902,2596.5,2596.0,2.3767]
[1724213348797,1.671,2596.6,2596.0,2.3767]
[1724213349537,2.07427,2596.6,2596.0,2.3767]
[1724213349895,2.07427,2596.6,2596.1,0.55]
[1724213350608,2.07427,2596.6,2595.6,2.01130968]
[1724213350609,2.3617,2596.3,2595.6,2.3767]
[1724213352135,1.671,2596.6,2595.7,2.221]
[1724213352336,1.671,2596.6,2595.8,2.3767]
[1724213352545,1.671,2596.6,2595.7,2.221]
[1724213352546,4.0327,2596.8,2596.0,2.4187]
[1724213352749,0.70327,2596.7,2596.0,2.4187]
[1724213353041,0.70327,2596.7,2596.1,0.627031]
[1724213353250,3.0,2596.9,2596.2,2.4187]
[1724213353395,4.1419,2597.0,2596.3,0.55]
[1724213356045,2.4709,2597.0,2596.3,0.55]
[1724213356246,7.1419,2597.0,2596.3,0.55]
[1724213361243,7.1419,2597.0,2596.4,2.3443]
[1724213361244,1.671,2597.0,2596.4,2.3443]
[1724213361556,1.671,2597.0,2596.5,0.55]
[1724213361756,0.50791368,2597.0,2596.5,0.55]
[1724213364637,1.671,2597.4,2596.6,2.3443]
[1724213364844,1.671,2597.4,2596.7,0.55]
[1724213366141,4.671,2597.4,2596.7,0.55]
[1724213367660,1.671,2597.2,2596.7,0.55]
[1724213367862,2.1381,2597.2,2596.7,0.55]
[1724213375771,4.5213,2597.2,2596.7,0.55]
[1724213375993,1.671,2597.0,2596.7,0.55]
[1724213376272,4.0584,2596.8,2596.5,7.30749346]
[1724213376485,2.07684,2596.8,2596.3,2.4381]
[1724213376632,1.671,2596.8,2596.3,2.4381]
[1724213377655,1.671,2596.8,2596.4,0.55]
[1724213381748,4.0584,2597.0,2596.4,0.55]
[1724213383137,0.4671,2597.2,2596.5,2.4273]
[1724213383346,0.4671,2597.2,2596.6,0.55]
[1724213383347,2.1381,2597.2,2596.6,0.55]
[1724213387775,0.45506,2597.1,2596.6,0.55]
[1724213389772,1.671,2597.0,2596.6,0.55]
[1724213397575,1.671,2597.0,2596.4,0.55]
[1724213397772,1.671,2596.6,2596.4,0.55]
[1724213397976,1.671,2596.6,2596.1,9.65859346]
[1724213398185,2.07851,2596.6,2596.1,9.65859346]
[1724213399017,2.07851,2596.6,2596.1,2.3511]
[1724213399183,0.40751,2596.6,2596.1,2.3511]